lending/lending_fUSD_20240703
["ID","MTS","AMOUNT","RATE_DAILY","PERIOD"]
[331010978,1720003843681,-4650.0,0.00015,2]
[331011141,1720003844796,-18048.120682,0.00013699,2]
[331011153,1720003845583,-410.2183359,0.00013699,2]
[331011155,1720003845594,-3953.81927455,0.00013699,2]
[331011157,1720003845604,-1256.49,0.00013699,2]
[331011159,1720003845615,-4853.45619711,0.00013699,2]
[331011161,1720003845626,-915.80375511,0.00013699,2]
[331011163,1720003845636,-569.29188853,0.00013699,2]
[331011165,1720003845648,-362.74634219,0.00013699,2]
[331011167,1720003845660,-560.7578107,0.00013699,2]
[331011170,1720003845671,-992.1,0.00013699,2]
[331011172,1720003845682,-1126.43968259,0.00013699,2]
[331011174,1720003845694,-251.53571627,0.00013699,2]
[331011175,1720003845706,-211699.22031505,0.00013699,2]
[331011176,1720003845716,-156920.86423448,0.00015,2]
[331011177,1720003845728,-2994.74175,0.00015,2]
[331011178,1720003845739,-1200.0,0.00015,2]
[331011179,1720003845751,-1260.97608979,0.00015,2]
[331011180,1720003845762,-771.82060922,0.00015,2]
[331011181,1720003845774,-5993.96581954,0.00015,2]
[331011182,1720003845977,-10397.62039256,0.00015,2]
[331011183,1720003845996,-363606.50698581,0.00015,2]
[331011184,1720003846006,-151.0,0.00015,2]
[331011185,1720003846015,-151.0,0.00015,2]
[331011186,1720003846024,-151.0,0.00015,2]
[331011187,1720003846034,-151.0,0.00015,2]
[331011188,1720003846044,-151.0,0.00015,2]
[331011189,1720003846054,-151.0,0.00015,2]
[331011190,1720003846063,-151.0,0.00015,2]
[331011191,1720003846072,-151.0,0.00015,2]
[331011192,1720003846082,-151.0,0.00015,2]
[331011193,1720003846092,-243.112392,0.00015,2]
[331011194,1720003846102,-151.0,0.00015,2]
[331011195,1720003846111,-151.0,0.00015,2]
[331011196,1720003846120,-151.0,0.00015,2]
[331011197,1720003846130,-151.0,0.00015,2]
[331011198,1720003846139,-151.0,0.00015,2]
[331011199,1720003846149,-151.0,0.00015,2]
[331011200,1720003846159,-151.0,0.00015,2]
[331011201,1720003846168,-151.0,0.00015,2]
[331011202,1720003846177,-151.0,0.00015,2]
[331011203,1720003846186,-151.0,0.00015,2]
[331011204,1720003846195,-151.0,0.00015,2]
[331011205,1720003846205,-151.0,0.00015,2]
[331011206,1720003846215,-151.0,0.00015,2]
[331011207,1720003846225,-151.0,0.00015,2]
[331011208,1720003846235,-151.679305,0.00015,2]
[331011209,1720003846244,-267.549176,0.00015,2]
[331011210,1720003846254,-151.0,0.00015,2]
[331011211,1720003846263,-151.0,0.00015,2]
[331011212,1720003846272,-151.0,0.00015,2]
[331011213,1720003846281,-151.0,0.00015,2]
[331011214,1720003846292,-151.0,0.00015,2]
[331011216,1720003846301,-151.0,0.00015,2]
[331011219,1720003846310,-151.0,0.00015,2]
[331011222,1720003846323,-151.0,0.00015,2]
[331011226,1720003846332,-151.0,0.00015,2]
[331011227,1720003846341,-151.0,0.00015,2]
[331011228,1720003846351,-151.0,0.00015,2]
[331011229,1720003846361,-151.0,0.00015,2]
[331011230,1720003846370,-151.0,0.00015,2]
[331011231,1720003846379,-151.0,0.00015,2]
[331011232,1720003846389,-222.181621,0.00015,2]
[331011234,1720003846400,-151.0,0.00015,2]
[331011236,1720003846409,-151.0,0.00015,2]
[331011238,1720003846419,-151.0,0.00015,2]
[331011240,1720003846428,-151.0,0.00015,2]
[331011242,1720003846438,-308.149529,0.00015,2]
[331011244,1720003846447,-308.149529,0.00015,2]
[331011246,1720003846456,-151.0,0.00015,2]
[331011248,1720003846465,-357.117857,0.00015,2]
[331011249,1720003846474,-150.05642858,0.00015,2]
[331011251,1720003846483,-188.033842,0.00015,2]
[331011253,1720003846494,-151.0,0.00015,2]
[331011255,1720003846503,-151.0,0.00015,2]
[331011258,1720003846512,-151.0,0.00015,2]
[331011259,1720003846522,-151.0,0.00015,2]
[331011261,1720003846531,-151.0,0.00015,2]
[331011263,1720003846541,-151.0,0.00015,2]
[331011265,1720003846550,-151.0,0.00015,2]
[331011267,1720003846560,-501.209194,0.00015,2]
[331011269,1720003846569,-501.209194,0.00015,2]
[331011270,1720003846579,-514.875497,0.00015,2]
[331011272,1720003846588,-514.875497,0.00015,2]
[331011274,1720003846598,-151.0,0.00015,2]
[331011276,1720003846608,-151.0,0.00015,2]
[331011278,1720003846617,-151.0,0.00015,2]
[331011280,1720003846629,-151.0,0.00015,2]
[331011282,1720003846638,-151.0,0.00015,2]
[331011283,1720003846647,-151.0,0.00015,2]
[331011285,1720003846657,-151.0,0.00015,2]
[331011287,1720003846666,-151.0,0.00015,2]
[331011288,1720003846675,-151.0,0.00015,2]
[331011289,1720003846684,-151.0,0.00015,2]
[331011290,1720003846694,-151.0,0.00015,2]
[331011291,1720003846703,-218.913988,0.00015,2]
[331011292,1720003846712,-192.48538,0.00015,2]
[331011293,1720003846722,-151.0,0.00015,2]
[331011294,1720003846731,-151.0,0.00015,2]
[331011295,1720003846740,-192.48538,0.00015,2]
[331011296,1720003846749,-151.0,0.00015,2]
[331011297,1720003846759,-151.0,0.00015,2]
[331011298,1720003846768,-151.0,0.00015,2]
[331011300,1720003846777,-151.0,0.00015,2]
[331011302,1720003846787,-151.0,0.00015,2]
[331011304,1720003846796,-151.0,0.00015,2]
[331011305,1720003846806,-151.0,0.00015,2]
[331011307,1720003846815,-151.0,0.00015,2]
[331011309,1720003846824,-193.709744,0.00015,2]
[331011311,1720003846834,-151.708353,0.00015,2]
[331011313,1720003846843,-193.709744,0.00015,2]
[331011315,1720003846852,-151.0,0.00015,2]
[331011317,1720003846862,-151.0,0.00015,2]
[331011319,1720003846871,-224.659292,0.00015,2]
[331011321,1720003846880,-151.0,0.00015,2]
[331011323,1720003846890,-151.0,0.00015,2]
[331011325,1720003846899,-151.0,0.00015,2]
[331011327,1720003846908,-151.0,0.00015,2]
[331011329,1720003846918,-288.6,0.00015068,2]
[331011331,1720003846928,-300.0,0.00015068,2]
[331011333,1720003846937,-436.32201151,0.00015287,2]
[331011335,1720003846946,-2377.33116314,0.00015287,2]
[331011337,1720003846955,-2720.9981356,0.00015544,2]
[331011339,1720003846965,-962.17219746,0.00015616,2]
[331011341,1720003846974,-288.6,0.00015753,2]
[331011342,1720003846983,-155.71818757,0.00015832,2]
[331011344,1720003846993,-1000.0,0.00015928,2]
[331011346,1720003847002,-823.0,0.00016037,2]
[331011348,1720003847011,-173.24,0.00016059,2]
[331011350,1720003847020,-962.17219746,0.00016424,2]
[331011352,1720003847030,-288.6,0.00016438,2]
[331011353,1720003847040,-300.0,0.00016438,2]
[331011354,1720003847050,-40875.36590689,0.00016439,7]
[331011360,1720003847107,-336.84091214,0.00016439,7]
[331011362,1720003847118,-2951.52100116,0.00016439,7]
[331011368,1720003847316,-531.23370013,0.00016439,7]
[331011370,1720003847332,-515.80849288,0.00016439,7]
[331011372,1720003847343,-717.12394233,0.00016439,7]
[331011374,1720003847355,-1195.57080635,0.00016439,7]
[331011376,1720003847366,-6640.3,0.00016439,7]
[331011378,1720003847378,-1196.72190481,0.00016439,7]
[331011381,1720003847389,-2470.9,0.00016439,7]
[331011382,1720003847400,-553.22115253,0.00016439,7]
[331011383,1720003847414,-18143.71198158,0.00016439,7]
[331011384,1720003847427,-689.31406054,0.00016439,7]
[331011385,1720003847437,-1790.99333,0.00016439,7]
[331011386,1720003847448,-3311.23661999,0.00016439,7]
[331011387,1720003847459,-297.63621753,0.00016439,7]
[331011388,1720003847470,-629.98319428,0.00016439,7]
[331011389,1720003847556,-27285.69188506,0.00016439,7]
[331011390,1720003847568,-924.6237,0.00016439,7]
[331011391,1720003847580,-6997.8,0.00016439,7]
[331011392,1720003847592,-451.34,0.00016439,7]
[331011393,1720003847603,-3431.15037639,0.00016439,7]
[331011394,1720003847615,-2743.572205,0.00016439,7]
[331011395,1720003847627,-772.646875,0.00016439,7]
[331011396,1720003847638,-335.30570427,0.00016439,7]
[331011397,1720003847649,-1203.76,0.00016439,7]
[331011398,1720003847659,-32437.0740051,0.00016439,7]
[331011399,1720003847670,-413.4164448,0.00016439,7]
[331011400,1720003847681,-283.2823812,0.00016439,7]
[331011401,1720003847692,-5227.01473356,0.00016439,7]
[331011402,1720003847703,-17126.60396848,0.00016439,7]
[331011403,1720003847714,-382.51727014,0.00016439,7]
[331011404,1720003847725,-4458.71138469,0.00016439,7]
[331011405,1720003847736,-506.0548444,0.00016439,7]
[331011406,1720003847748,-677.57587675,0.00016439,7]
[331011427,1720003945190,200.14283233,9.61e-05,2]
[331011430,1720003996310,436.32201151,0.00011648,2]
[331011437,1720004271203,309.48520799,0.00011199,2]
[331011438,1720004280084,442.04769322,0.00011199,2]
[331011439,1720004284046,165.90597,0.00011199,2]
[331011440,1720004326617,154.5413,0.00011199,2]
[331011441,1720004369425,165.90597,0.00011199,2]
[331011442,1720004412356,154.5413,0.00011199,2]
[331011443,1720004455043,40.36395394,0.00011199,2]
[331011444,1720004455066,125.54201606,0.00011199,2]
[331011445,1720004498316,154.5413,0.00011199,2]
[331011447,1720004541094,165.90599,0.00011199,2]
[331011448,1720004583899,154.54129,0.00011199,2]
[331011449,1720004641262,1299.83266389,0.00011199,7]
[331011452,1720004715420,368.2,0.00011048,2]
[331011539,1720004874741,763.75259061,0.00011199,2]
[331011540,1720004930212,886.65300883,0.00011199,2]
[331011541,1720005014818,544.0998858,0.00011199,2]
[331011547,1720005032813,-167.51,0.00011966,2]
[331011549,1720005032824,-169.26,0.00011966,2]
[331011551,1720005032835,-155.50674057,0.00012273,2]
[331011552,1720005032846,-155.71818757,0.00012273,2]
[331011553,1720005032856,-142.74033949,0.00012302,2]
[331011554,1720005032870,-4443.51873846,0.00012302,2]
[331011555,1720005032881,-1442.01221234,0.00012302,2]
[331011556,1720005032892,-1185.93111876,0.00012302,2]
[331011557,1720005032902,-155.0,0.00012314,2]
[331011558,1720005032911,-1000.0,0.00012413,2]
[331011559,1720005032920,-180.71,0.00012504,2]
[331011560,1720005032929,-1852.42,0.00012596,2]
[331011561,1720005032939,-2361.9,0.00012657,2]
[331011562,1720005032948,-151.39412324,0.00012736,2]
[331011563,1720005032957,-2346.57,0.00012736,2]
[331011564,1720005032967,-1227.25,0.00012756,2]
[331011565,1720005032977,-1240.62,0.00012836,2]
[331011566,1720005032987,-160.36,0.00013011,2]
[331011567,1720005032997,-1953.60355539,0.00013011,2]
[331011568,1720005033008,-876.20644461,0.00013011,2]
[331011569,1720005033018,-150.0,0.00013068,2]
[331011570,1720005033027,-5101.02155539,0.00013069,2]
[331011571,1720005033038,-5695.5,0.00013069,2]
[331011572,1720005033050,-544.18604587,0.00013069,2]
[331011573,1720005033061,-4281.9081366,0.00013069,2]
[331011574,1720005033209,-544.0998858,0.00013069,2]
[331011576,1720005033221,-7733.28437634,0.00013069,2]
[331011578,1720005033230,-2721.94,0.00013276,2]
[331011580,1720005033240,-368.2,0.00013312,2]
[331011582,1720005033249,-160.36,0.0001335,2]
[331011584,1720005033258,-299.99,0.00013472,2]
[331011586,1720005033267,-629.05260508,0.00013574,2]
[331011588,1720005033275,-154.5413,0.0001359,2]
[331011589,1720005033284,-160.0513,0.00013599,2]
[331011591,1720005033294,-200.0,0.00013609,2]
[331011593,1720005033303,-250.0,0.00013609,2]
[331011595,1720005033312,-160.36,0.00013689,2]
[331011597,1720005033321,-2730.92,0.00013699,2]
[331011599,1720005033330,-318.35,0.00013699,2]
[331011600,1720005033339,-100000.0,0.00013699,2]
[331011601,1720005033348,-857.5475,0.00013699,2]
[331011602,1720005033358,-150.0,0.000137,2]
[331011603,1720005033367,-150.05642858,0.000137,2]
[331011604,1720005033376,-273.23,0.00013782,2]
[331011605,1720005033385,-1000.0,0.00013799,2]
[331011606,1720005033395,-166.94286737,0.00013799,2]
[331011607,1720005033404,-11399.35259445,0.000138,2]
[331011608,1720005033413,-499.99,0.00013899,2]
[331011609,1720005033422,-176.2221,0.00013899,2]
[331011610,1720005033431,-69171.4819,0.00013899,2]
[331011611,1720005033439,-315.78763447,0.00013899,2]
[331011612,1720005033448,-157.44730639,0.00013899,2]
[331011613,1720005033457,-952.90112419,0.000139,2]
[331011614,1720005033466,-1000.0,0.00013964,2]
[331011615,1720005033475,-188.80625025,0.00013989,2]
[331011616,1720005033485,-314666.7409727,0.00013999,2]
[331011617,1720005033498,-223744.98529063,0.00013999,2]
[331011618,1720005033509,-423.56713528,0.00013999,2]
[331011619,1720005033521,-9341.31451195,0.00013999,2]
[331011620,1720005033530,-67215.04445629,0.00013999,2]
[331011621,1720005033540,-351.56071379,0.00013999,2]
[331011633,1720005038992,-1632.3621893,0.00013999,2]
[331011634,1720005039005,-15419.15674717,0.00013999,2]
[331011635,1720005039018,-3414.75,0.00013999,2]
[331011636,1720005039031,-308326.19008503,0.00013999,2]
[331011637,1720005039041,-461.77519824,0.00014,2]
[331011638,1720005039051,-250.0,0.00014248,2]
[331011639,1720005039061,-500.0,0.00014431,2]
[331011640,1720005039072,-250.0,0.00014431,2]
[331011641,1720005039083,-882.02453275,0.00014453,2]
[331011642,1720005039094,-882.02453276,0.00014453,2]
[331011643,1720005039104,-273.23,0.00014471,2]
[331011644,1720005039115,-952.90112408,0.00014717,2]
[331011645,1720005039126,-461.10125874,0.00014796,2]
[331011646,1720005039137,-737.1110252,0.00015,2]
[331011647,1720005039147,-5000.0,0.00015,2]
[331011648,1720005039158,-300.0,0.00015068,2]
[331011649,1720005039169,-273.23,0.00015161,2]
[331011650,1720005039179,-15433.33883135,0.00015399,2]
[331011651,1720005039189,-1000.0,0.00015516,2]
[331011652,1720005039201,-952.90112408,0.00015535,2]
[331011653,1720005039211,-368.2,0.00015576,2]
[331011654,1720005039225,-173.24,0.00015626,2]
[331011655,1720005039236,-273.23,0.0001585,2]
[331011656,1720005039246,-193.58819095,0.00016172,2]
[331011657,1720005039257,-952.90112408,0.00016352,2]
[331011658,1720005039267,-300.0,0.00016438,2]
[331011659,1720005039278,-21925.832829,0.00016439,7]
[331011660,1720005039288,-40875.3659066,0.00016439,7]
[331011661,1720005039299,-169.74477464,0.00016439,2]
[331011662,1720005039311,-24647.33991007,0.00016439,2]
[331011663,1720005039322,-2000.0,0.00016439,2]
[331011664,1720005039332,-200.0,0.00016439,2]
[331011665,1720005039343,-2000.0,0.00016439,2]
[331011666,1720005039352,-200.0,0.00016439,2]
[331011667,1720005039362,-2000.0,0.00016439,2]
[331011668,1720005039371,-200.0,0.00016439,2]
[331011669,1720005039381,-166.94286736,0.00016533,2]
[331011670,1720005039391,-273.23,0.00016539,2]
[331011671,1720005039400,-2000.0,0.00016603,2]
[331011672,1720005039410,-200.0,0.00016603,2]
[331011673,1720005039420,-2000.0,0.00016603,2]
[331011674,1720005039429,-200.0,0.00016603,2]
[331011675,1720005039439,-2000.0,0.00016603,2]
[331011676,1720005039448,-200.0,0.00016603,2]
[331011677,1720005039457,-150.0,0.00016637,2]
[331011678,1720005039467,-192.04,0.00016712,2]
[331011679,1720005039477,-2000.0,0.00016769,2]
[331011680,1720005039486,-200.0,0.00016769,2]
[331011681,1720005039496,-2000.0,0.00016769,2]
[331011682,1720005039505,-200.0,0.00016769,2]
[331011683,1720005039514,-2000.0,0.00016769,2]
[331011684,1720005039524,-200.0,0.00016769,2]
[331011685,1720005039533,-2000.0,0.00016937,2]
[331011686,1720005039543,-200.0,0.00016937,2]
[331011688,1720005039552,-2000.0,0.00016937,2]
[331011690,1720005039562,-200.0,0.00016937,2]
[331011691,1720005039571,-1000.0,0.00017068,2]
[331011692,1720005039580,-3859.0,0.000171,3]
[331011693,1720005039589,-2000.0,0.00017106,2]
[331011694,1720005039599,-200.0,0.00017106,2]
[331011695,1720005039608,-952.90112408,0.00017169,2]
[331011696,1720005039617,-155.45947275,0.00017199,2]
[331011697,1720005039627,-297.70719904,0.00017259,2]
[331011698,1720005039636,-368.2,0.0001784,2]
[331011699,1720005039645,-2377.33116314,0.00017889,2]
[331011700,1720005039655,-952.90112408,0.00017986,2]
[331011701,1720005039907,-306.58272941,0.00018,2]
[331011702,1720005039918,-682.0,0.00018244,2]
[331011703,1720005039928,-740.0,0.000183,3]
[331011704,1720005039938,-1000.0,0.00018619,2]
[331011705,1720005039948,-583.46994771,0.00018649,2]
[331011706,1720005039958,-650.99676465,0.00018717,2]
[331011707,1720005039967,-227.12084219,0.00018764,2]
[331011708,1720005039977,-2609.7595,0.000188,2]
[331011709,1720005039991,-952.90112408,0.00018804,2]
[331011710,1720005040002,-151.4,0.000189,2]
[331011711,1720005040013,-151.4,0.000189,2]
[331011712,1720005040023,-151.4,0.000189,2]
[331011713,1720005040033,-151.4,0.000189,2]
[331011714,1720005040043,-151.4,0.000189,2]
[331011715,1720005040052,-151.4,0.000189,2]
[331011716,1720005040062,-1535.0,0.000189,5]
[331011717,1720005040073,-250.0,0.00019178,2]
[331011718,1720005040083,-318.35,0.00019178,2]
[331011719,1720005040093,-166.94286736,0.00019266,2]
[331011720,1720005040103,-952.90112408,0.00019621,2]
[331011721,1720005040113,-154.82712235,0.0002,2]
[331011722,1720005040122,-154.82712235,0.0002,2]
[331011723,1720005040132,-154.82712235,0.0002,2]
[331011724,1720005040142,-154.82712235,0.0002,2]
[331011725,1720005040152,-154.82712235,0.0002,2]
[331011726,1720005040163,-154.82712235,0.0002,2]
[331011727,1720005040174,-154.82712235,0.0002,2]
[331011728,1720005040184,-154.82712235,0.0002,2]
[331011729,1720005040194,-154.82712235,0.0002,2]
[331011730,1720005040203,-154.82712235,0.0002,2]
[331011731,1720005040213,-154.82712235,0.0002,2]
[331011732,1720005040223,-154.82712235,0.0002,2]
[331011733,1720005040233,-154.82712235,0.0002,2]
[331011734,1720005040243,-154.82712235,0.0002,2]
[331011735,1720005040253,-154.82712235,0.0002,2]
[331011736,1720005040264,-154.82712235,0.0002,2]
[331011737,1720005040273,-154.82712235,0.0002,2]
[331011738,1720005040283,-154.82712235,0.0002,2]
[331011739,1720005040292,-154.82712235,0.0002,2]
[331011740,1720005040302,-154.82712235,0.0002,2]
[331011741,1720005040311,-154.82712235,0.0002,2]
[331011742,1720005040321,-154.82712235,0.0002,2]
[331011743,1720005040330,-154.82712235,0.0002,2]
[331011744,1720005040340,-154.82712235,0.0002,2]
[331011745,1720005040350,-154.82712235,0.0002,2]
[331011746,1720005040359,-154.82712235,0.0002,2]
[331011747,1720005040368,-154.82712235,0.0002,2]
[331011748,1720005040378,-154.82712235,0.0002,2]
[331011749,1720005040388,-154.82712235,0.0002,2]
[331011750,1720005040398,-154.82712235,0.0002,2]
[331011751,1720005040408,-154.82712235,0.0002,2]
[331011752,1720005040417,-154.82712235,0.0002,2]
[331011753,1720005040427,-154.82712235,0.0002,2]
[331011754,1720005040436,-154.82712235,0.0002,2]
[331011755,1720005040445,-154.82712235,0.0002,2]
[331011756,1720005040454,-154.82712235,0.0002,2]
[331011757,1720005040463,-154.82712235,0.0002,2]
[331011758,1720005040472,-154.82712235,0.0002,2]
[331011759,1720005040481,-154.82712235,0.0002,2]
[331011760,1720005040491,-154.82712235,0.0002,2]
[331011761,1720005040501,-154.82712235,0.0002,2]
[331011762,1720005040510,-154.82712235,0.0002,2]
[331011763,1720005040520,-154.82712235,0.0002,2]
[331011764,1720005040529,-154.82712235,0.0002,2]
[331011765,1720005040537,-154.82712235,0.0002,2]
[331011766,1720005040547,-154.82712235,0.0002,2]
[331011767,1720005040556,-154.82712235,0.0002,2]
[331011768,1720005040566,-368.2,0.00020104,2]
[331011769,1720005040575,-300.46,0.00020361,2]
[331011770,1720005040585,-952.90112408,0.00020438,2]
[331011771,1720005040594,-1000.0,0.00020547,3]
[331011772,1720005040603,-6866.667,0.00020572,2]
[331011773,1720005040613,-7500.0,0.000206,2]
[331011774,1720005040622,-151.4,0.0002069,2]
[331011775,1720005040631,-151.4,0.0002069,2]
[331011776,1720005040640,-245000.0,0.000207,2]
[331011777,1720005040650,-497.14897,0.00020721,2]
[331011778,1720005040659,-182.194855,0.00020721,2]
[331011779,1720005040668,-214.003364,0.00020721,2]
[331011780,1720005040679,-160.49237674,0.00020729,2]
[331011781,1720005040689,-13695.3407323,0.000208,2]
[331011782,1720005040703,-151.0962038,0.00020819,2]
[331011783,1720005040712,-6089.58644383,0.0002082,2]
[331011784,1720005040722,-1304.0,0.00020845,2]
[331011785,1720005040731,-283.0,0.00020845,2]
[331011786,1720005040740,-3206.0,0.00020845,2]
[331011787,1720005040749,-1987.0,0.00020845,2]
[331011788,1720005040758,-291.0,0.00020845,2]
[331011789,1720005040769,-5176.0,0.00020845,2]
[331011790,1720005040780,-1213.81,0.00020845,2]
[331011791,1720005040790,-1663.0,0.00020845,2]
[331011792,1720005040799,-497.14897,0.0002098,2]
[331011793,1720005040809,-6295.57481472,0.00021,2]
[331011794,1720005040818,-159.00626311,0.00021007,2]
[331011795,1720005040827,-152.12653755,0.00021011,2]
[331011796,1720005040836,-159.00626311,0.00021082,2]
[331011797,1720005040845,-3647.45541363,0.00021089,2]
[331011798,1720005040855,-150.54,0.00021178,2]
[331011799,1720005040864,-150.0,0.00021183,2]
[331011800,1720005040874,-528.26,0.00021183,2]
[331011801,1720005040883,-497.14897,0.00021239,2]
[331011802,1720005040892,-952.90112408,0.00021255,2]
[331011803,1720005040902,-159.00626311,0.00021288,2]
[331011804,1720005040911,-158.57281557,0.00021332,2]
[331011805,1720005040920,-150.0,0.00021342,2]
[331011806,1720005040930,-164.85,0.00021342,2]
[331011807,1720005040939,-150.0,0.00021342,2]
[331011808,1720005040949,-709.66,0.00021342,2]
[331011809,1720005040959,-150.0,0.00021342,2]
[331011810,1720005040969,-301.55,0.00021342,2]
[331011811,1720005040979,-306.35,0.00021342,2]
[331011812,1720005040988,-318.6,0.00021342,2]
[331011813,1720005040998,-528.42,0.00021342,2]
[331011814,1720005041008,-150.0,0.00021342,2]
[331011815,1720005041017,-150.0,0.00021342,2]
[331011816,1720005041027,-150.0,0.00021342,2]
[331011817,1720005041037,-150.0,0.00021342,2]
[331011818,1720005041046,-528.42,0.00021342,2]
[331011819,1720005041056,-164.85,0.00021342,2]
[331011820,1720005041064,-150.0,0.00021342,2]
[331011821,1720005041074,-164.85,0.00021342,2]
[331011822,1720005041083,-528.42,0.00021342,2]
[331011823,1720005041092,-150.0,0.00021342,2]
[331011824,1720005041101,-528.42,0.00021342,2]
[331011826,1720005041110,-150.0,0.00021342,2]
[331011828,1720005041120,-150.0,0.00021342,2]
[331011829,1720005041128,-150.0,0.00021342,2]
[331011830,1720005041137,-528.42,0.00021342,2]
[331011831,1720005041148,-150.0,0.00021342,2]
[331011832,1720005041158,-150.0,0.00021342,2]
[331011833,1720005041167,-150.0,0.00021342,2]
[331011834,1720005041176,-528.42,0.00021342,2]
[331011835,1720005041185,-158.24,0.00021342,2]
[331011836,1720005041195,-171.32,0.00021342,2]
[331011837,1720005041204,-528.42,0.00021342,2]
[331011838,1720005041213,-528.42,0.00021342,2]
[331011839,1720005041222,-528.42,0.00021342,2]
[331011840,1720005041231,-150.0,0.00021345,2]
[331011841,1720005041241,-159.00626311,0.00021422,2]
[331011842,1720005041250,-12027.49,0.00021425,6]
[331011843,1720005041259,-42397.51,0.00021425,6]
[331011844,1720005041268,-151.0669482,0.00021458,2]
[331011845,1720005041277,-497.14897,0.00021498,2]
[331011846,1720005041287,-159.00626311,0.00021538,2]
[331011847,1720005041296,-14473.65168725,0.00021548,6]
[331011848,1720005041677,-346.39405395,0.00021548,6]
[331011849,1720005041692,-288.12424113,0.00021548,6]
[331011850,1720005041708,-9599.71668443,0.00021548,6]
[331011851,1720005041722,-16555.0,0.00021548,6]
[331011852,1720005041734,-3472.06120576,0.00021548,6]
[331011853,1720005041941,-154.82712235,0.0002,2]
[331011854,1720005041952,-154.82712235,0.0002,2]
[331011855,1720005041961,-520.93497519,0.00021548,6]
[331011856,1720005041972,-540.65357155,0.00021548,6]
[331011857,1720005041983,-658.913,0.00021548,6]
[331011858,1720005041995,-30203.30905,0.00021548,6]
[331011859,1720005042006,-15063.78526641,0.00021548,6]
[331011860,1720005042017,-18963.915,0.00021548,6]
[331011861,1720005042028,-3996.84039679,0.00021548,6]
[331011877,1720005042645,-1250.0,0.00019,2]
[331011878,1720005042655,-154.82712235,0.0002,2]
[331011879,1720005042664,-154.82712235,0.0002,2]
[331011880,1720005042675,-154.82712235,0.0002,2]
[331011881,1720005042685,-154.82712235,0.0002,2]
[331011882,1720005042697,-154.82712235,0.0002,2]
[331011883,1720005042707,-154.82712235,0.0002,2]
[331011884,1720005042716,-154.82712235,0.0002,2]
[331011885,1720005042726,-747.38209354,0.00021548,6]
[331011886,1720005042739,-1693.31081154,0.00021548,6]
[331011887,1720005042750,-5061.99389097,0.00021548,6]
[331011888,1720005042761,-1482.93474898,0.00021548,6]
[331011889,1720005042776,-260.23562481,0.00021548,6]
[331011890,1720005042787,-4327.6336977,0.00021548,6]
[331011891,1720005042797,-151.90297206,0.00021561,2]
[331011892,1720005042806,-154.17138077,0.00021625,2]
[331011893,1720005042816,-204.46,0.00021644,2]
[331011894,1720005042826,-191.47,0.00021644,2]
[331011895,1720005042835,-451.01,0.00021644,2]
[331011896,1720005042846,-157.19982356,0.00021698,2]
[331011897,1720005042856,-953.03121734,0.00021699,2]
[331011898,1720005042866,-500.0,0.00021741,2]
[331011899,1720005042876,-500.0,0.00021742,2]
[331011900,1720005042887,-500.0,0.00021742,2]
[331011901,1720005042896,-497.14897,0.00021757,2]
[331011902,1720005042905,-182.194855,0.00021757,2]
[331011903,1720005042915,-7882.368689,0.000218,2]
[331011904,1720005042924,-1500.0,0.00021813,2]
[331011905,1720005042933,-2210.16738409,0.00021817,2]